bitfinex/quotes_ETHUSD_20250326
["timestamp","ask_amount","ask_price","bid_price","bid_amount"]
[1742996130110,28.098,2055.2,2055.1,7.05149661]
[1742996130319,4.974,2055.5,2055.3,4.86525]
[1742996130604,4.975,2055.6,2055.2,12.30865454]
[1742996130771,4.975,2055.6,2055.2,4.86569]
[1742996130970,4.975,2055.6,2055.2,4.8657]
[1742996131178,4.975,2055.6,2055.3,4.86532]
[1742996131378,4.975,2055.6,2055.2,4.86567]
[1742996131379,5.65593606,2055.6,2055.2,4.86567]
[1742996131578,0.7702,2055.5,2054.7,9.30982454]
[1742996131873,1.01151829,2055.4,2054.9,4.8664]
[1742996132068,0.40115183,2055.3,2055.1,4.86583]
[1742996132392,5.65593606,2055.6,2055.2,4.8657]
[1742996132595,6.47603606,2055.6,2055.2,4.8657]
[1742996133413,6.47603606,2055.6,2055.1,4.86592]
[1742996133582,6.47603606,2055.6,2055.1,9.73169]
[1742996133781,6.47603606,2055.6,2055.0,0.8156]
[1742996133782,6.47603606,2055.6,2055.0,4.86615]
[1742996134096,0.74973967,2055.5,2054.9,4.86641]
[1742996134504,0.74973967,2055.5,2055.0,4.86609]
[1742996134704,0.74973967,2055.5,2054.9,9.73258]
[1742996134901,0.74973967,2055.5,2054.8,5.63344]
[1742996135204,0.7515,2055.4,2054.8,4.86664]
[1742996135405,0.45012397,2055.3,2054.8,4.86664]
[1742996135606,0.45012397,2055.3,2054.8,4.86656]
[1742996135914,0.45012397,2055.3,2054.9,4.86626]
[1742996136119,0.45012397,2055.3,2054.9,9.73259]
[1742996136120,0.98306472,2055.2,2054.9,9.73259]
[1742996136328,4.973,2055.1,2054.9,9.73259]
[1742996136814,5.61361887,2055.1,2054.7,4.86683]
[1742996137020,5.61361887,2055.1,2054.9,4.86639]
[1742996137620,5.61361887,2055.1,2054.8,4.86654]
[1742996137826,5.61361887,2055.1,2054.8,4.8665]
[1742996138024,1.47846836,2055.0,2054.6,5.69952]
[1742996138224,1.47846836,2055.0,2054.5,4.86734]
[1742996138538,1.47846836,2055.0,2054.5,9.73459]
[1742996139109,1.47846836,2055.0,2054.6,4.8671]
[1742996139745,1.47846836,2055.0,2054.6,4.86697]
[1742996139943,1.47846836,2055.0,2054.6,9.73394]
[1742996140106,0.64514684,2054.9,2054.6,4.86697]
[1742996140724,0.64514684,2054.9,2054.5,4.86725]
[1742996141339,0.64514684,2054.9,2054.2,9.31083454]
[1742996141506,0.7894,2054.8,2054.3,4.86769]
[1742996141934,0.7894,2054.8,2054.4,4.86743]
[1742996142123,0.7894,2054.8,2054.5,4.86722]
[1742996142324,3.0,2055.0,2054.5,4.86722]
[1742996142325,0.833,2055.0,2054.9,4.86641]
[1742996142526,5.48866603,2056.2,2054.7,4.8668]
[1742996142527,4.95,2055.1,2054.7,4.8668]
[1742996143013,4.95,2055.1,2054.5,4.86733]
[1742996143214,4.95,2055.1,2054.6,4.86704]
[1742996143514,0.833,2055.0,2054.6,4.86709]
[1742996143709,0.5783,2054.9,2054.6,4.86701]
[1742996143926,0.833,2055.0,2054.7,4.86681]
[1742996144107,0.833,2055.0,2054.5,4.86736]
[1742996144313,0.833,2055.0,2054.6,4.8671]
[1742996144529,0.833,2055.0,2054.5,4.86728]
[1742996144733,0.833,2055.0,2054.6,4.8671]
[1742996144912,4.31829383,2055.0,2054.6,9.30997454]
[1742996145106,0.833,2055.0,2054.8,4.86661]
[1742996145308,0.833,2055.0,2054.5,4.86717]
[1742996145543,0.833,2055.0,2054.4,9.31053454]
[1742996145748,0.833,2055.0,2054.6,9.73408]
[1742996146122,0.833,2055.0,2054.6,4.86698]
[1742996146311,4.61829383,2055.0,2054.6,9.73398]
[1742996146516,4.61829383,2055.0,2054.6,4.86698]
[1742996146825,0.833,2055.0,2054.8,4.8665]
[1742996147023,29.06993827,2055.2,2055.1,4.86594]
[1742996147024,34.82983827,2055.2,2055.1,4.86594]
[1742996147208,33.03,2055.2,2055.0,9.30912454]
[1742996147408,33.03,2055.2,2054.9,4.86641]
[1742996147819,36.41469,2055.2,2054.8,4.86657]
[1742996148033,8.32769,2055.2,2054.9,9.73263]
[1742996148233,4.943,2055.2,2055.1,4.86594]
[1742996148533,28.088,2055.5,2055.3,4.86546]
[1742996148727,4.941,2055.4,2055.3,4.86546]
[1742996148929,28.088,2055.5,2055.4,4.86523]
[1742996149131,33.028,2055.5,2055.4,4.86523]
[1742996149533,28.088,2055.5,2055.4,9.30819454]
[1742996150361,28.088,2055.5,2055.2,9.30866454]
[1742996150669,28.088,2055.5,2055.3,4.86533]
[1742996150829,30.8968,2055.5,2055.2,9.73116]
[1742996151029,28.088,2055.5,2055.3,4.8654]
[1742996151241,28.088,2055.5,2055.3,9.73071]
[1742996151436,28.088,2055.5,2055.3,9.73068]
[1742996151654,28.088,2055.5,2055.4,4.86523]
[1742996151960,33.03,2055.5,2055.4,4.86523]
[1742996152527,6.67483605,2055.9,2055.5,4.86498]
[1742996152728,6.67483605,2055.9,2055.4,4.86516]
[1742996153355,6.67483605,2055.9,2055.3,4.86541]
[1742996153562,6.67483605,2055.9,2055.2,4.86563]
[1742996153857,0.7841,2055.7,2055.2,9.73116]
[1742996154062,0.7841,2055.7,2055.2,9.73112]
[1742996154268,0.7841,2055.7,2055.3,4.86542]
[1742996154869,0.7841,2055.7,2055.2,9.73113]
[1742996155170,0.7841,2055.7,2055.3,4.86546]
[1742996156079,0.7841,2055.7,2055.2,4.86553]
[1742996156277,0.7841,2055.7,2055.2,4.86552]
[1742996156434,0.7841,2055.7,2055.3,4.86546]
[1742996156767,0.7841,2055.7,2055.2,9.73109]
[1742996156944,0.7841,2055.7,2055.1,9.6696344]
[1742996157147,0.96492424,2055.5,2055.2,4.86568]
[1742996157364,0.96492424,2055.5,2055.3,4.86533]
[1742996157532,4.934,2055.4,2055.3,4.86533]
[1742996158771,4.928,2055.5,2055.4,4.86509]
[1742996160474,0.8194,2056.3,2055.4,2.22169811]
[1742996160660,28.085,2056.4,2056.2,4.86334]
[1742996160863,5.7524,2056.7,2056.3,4.86296]
[1742996161355,5.7524,2056.7,2056.4,4.86284]
[1742996161558,5.7524,2056.7,2056.6,4.86239]
[1742996161559,1.40164,2056.7,2056.6,4.86239]
[1742996161760,4.935,2057.0,2056.8,4.86192]
[1742996161963,28.081,2057.2,2056.8,10.17499986]
[1742996162275,4.945,2057.1,2056.6,9.30525454]
[1742996162571,4.945,2057.1,2056.8,4.86192]
[1742996162981,4.945,2057.1,2056.4,13.12730454]
[1742996163183,0.866,2056.9,2056.3,4.8629]
[1742996163387,0.3866,2056.8,2056.2,4.86329]
[1742996163551,0.3866,2056.8,2056.2,9.72642]
[1742996163748,0.3866,2056.8,2056.2,4.86313]
[1742996163953,0.3866,2056.8,2056.1,10.12792454]
[1742996164354,0.3866,2056.8,2056.0,4.8637]
[1742996164554,0.3866,2056.8,2056.1,4.86354]
[1742996167361,5.817,2056.9,2056.5,4.86253]
[1742996167696,0.07,2056.9,2056.8,4.86192]
[1742996167998,0.07,2056.9,2056.8,9.30488454]
[1742996168185,0.07,2056.9,2056.8,10.15699675]
[1742996168364,0.07,2056.9,2056.8,12.09653322]
[1742996168563,0.07,2056.9,2056.8,5.66542]
[1742996168777,0.07,2056.9,2056.8,10.10838454]
[1742996169799,0.07,2056.9,2056.8,9.30488454]
[1742996170001,0.07,2056.9,2056.8,4.86192]
[1742996170205,0.07,2056.9,2056.8,9.30488454]
[1742996170698,0.07,2056.9,2056.8,9.3534949]
[1742996170900,0.07,2056.9,2056.8,14.37523886]
[1742996171099,0.07,2056.9,2056.8,14.3266285]
[1742996171394,0.07,2056.9,2056.8,15.1267285]
[1742996172103,4.957,2057.8,2057.6,4.86003]
[1742996172397,0.16268839,2057.7,2057.5,14.16333454]
[1742996172702,4.957,2057.8,2057.6,4.86003]
[1742996172866,4.957,2057.8,2057.5,9.30310454]
[1742996173066,4.957,2057.8,2057.5,4.44296454]
[1742996173377,5.52821,2057.8,2057.4,4.86046]
[1742996173585,5.52821,2057.8,2057.3,4.86058]
[1742996174187,5.52821,2057.8,2057.5,4.86025]
[1742996174496,5.52821,2057.8,2057.4,9.72076]
[1742996174796,4.957,2057.8,2057.7,4.85979]
[1742996174997,4.957,2057.8,2057.6,4.86003]
[1742996175211,4.957,2057.8,2057.5,9.30319454]
[1742996175377,4.957,2057.8,2057.2,4.86078]
[1742996175577,0.4957,2057.7,2057.2,4.86078]
[1742996176184,0.4957,2057.7,2057.0,5.63099]
[1742996176383,0.4957,2057.7,2057.1,9.7221]
[1742996176384,0.7797,2057.6,2057.1,9.7221]
[1742996176602,0.7797,2057.6,2057.1,9.72206]
[1742996176803,0.7797,2057.6,2057.4,4.8604]
[1742996177010,4.963,2057.8,2057.4,4.8604]
[1742996177583,4.963,2057.8,2057.5,4.86021]
[1742996177781,1.81402575,2057.9,2057.4,4.44296454]
[1742996178006,4.964,2057.8,2057.6,4.86002]
[1742996178205,4.964,2057.8,2057.4,9.30341454]
[1742996178397,4.964,2057.8,2057.3,4.86051]
[1742996178577,5.64180258,2057.8,2057.3,4.86051]
[1742996178783,4.965,2057.7,2057.3,4.86051]
[1742996178982,4.965,2057.7,2057.4,9.30329454]
[1742996179198,4.965,2057.7,2057.5,4.90883063]
[1742996179477,4.965,2057.7,2057.6,4.86003]
[1742996179688,4.965,2057.7,2057.6,9.30299454]
[1742996179908,4.966,2058.1,2057.8,4.85937]
[1742996180100,33.8428,2058.2,2057.8,4.85937]
[1742996180491,34.81170295,2058.2,2057.9,4.85923]
[1742996180694,34.81170295,2058.2,2057.6,6.62398699]
[1742996181019,34.81170295,2058.2,2057.9,4.85918]
[1742996181386,34.81170295,2058.2,2057.9,9.71836]
[1742996181586,34.81170295,2058.2,2057.8,4.44296454]
[1742996181587,34.81170295,2058.2,2057.8,9.30250454]
[1742996181787,34.81170295,2058.2,2057.8,4.8594]
[1742996181988,34.81170295,2058.2,2057.8,4.85949]
[1742996182188,38.59287325,2058.2,2057.8,4.85949]
[1742996182389,38.59287325,2058.2,2057.6,5.20766454]
[1742996182593,34.81170295,2058.2,2057.9,4.85912]
[1742996183002,28.8748,2058.2,2058.0,4.85905]
[1742996183420,28.071,2058.2,2058.0,4.85905]
[1742996184304,28.071,2058.2,2058.0,4.8589]
[1742996184700,28.071,2058.2,2057.9,4.85921]
[1742996184927,28.071,2058.2,2058.0,4.85907]
[1742996185134,28.071,2058.2,2058.0,9.71795]
[1742996185433,28.071,2058.2,2058.1,4.85885]
[1742996185636,0.7579,2058.7,2058.3,4.85814]
[1742996185936,0.98236934,2058.6,2058.3,9.71634]
[1742996186231,0.98236934,2058.6,2058.2,4.8585]
[1742996186425,0.98236934,2058.6,2058.2,4.85845]
[1742996186897,0.98236934,2058.6,2058.3,4.85827]
[1742996187102,0.98236934,2058.6,2058.3,4.90684809]
[1742996187321,0.98236934,2058.6,2058.2,9.30141454]
[1742996187635,0.98236934,2058.6,2058.2,4.85845]
[1742996188218,1.65219627,2058.6,2058.1,4.85878]
[1742996188607,1.65219627,2058.6,2058.1,4.90736259]
[1742996189236,1.65219627,2058.6,2058.0,9.30182454]
[1742996189435,1.65219627,2058.6,2058.0,4.44296454]
[1742996189615,0.98236934,2058.6,2058.2,4.85861]
[1742996190217,0.98236934,2058.6,2058.3,4.85832]
[1742996190525,4.95,2058.5,2058.3,4.85832]
[1742996190824,4.95,2058.5,2057.2,0.1]
[1742996190825,0.7664,2058.3,2057.2,0.7698]
[1742996191029,3.0,2058.2,2057.2,10.07371454]
[1742996191226,3.55,2058.0,2057.2,5.63075]
[1742996191530,0.7664,2057.8,2057.2,5.6306]
[1742996191724,0.7664,2057.8,2057.2,2.34855989]
[1742996192136,0.7664,2057.8,2057.2,7.20943989]
[1742996192344,0.7664,2057.8,2057.3,4.86064]
[1742996192538,0.7664,2057.8,2057.2,1.53015673]
[1742996192838,0.99293748,2057.7,2057.1,4.86119]
[1742996193039,0.99293748,2057.7,2057.1,4.90981578]
[1742996193214,0.99293748,2057.7,2057.2,4.86074]
[1742996193416,0.99293748,2057.7,2057.3,4.86063]
[1742996193805,0.99293748,2057.7,2057.2,4.86074]
[1742996194010,0.99293748,2057.7,2057.3,4.86066]
[1742996194541,0.99293748,2057.7,2057.2,6.27743945]
[1742996194730,0.99293748,2057.7,2057.2,11.13829945]
[1742996194930,0.99293748,2057.7,2057.3,4.86071]
[1742996195129,0.99293748,2057.7,2057.3,0.04860126]
[1742996195441,0.99293748,2057.7,2057.3,5.50008778]
[1742996195641,0.99293748,2057.7,2057.3,0.59080652]
[1742996195839,0.99293748,2057.7,2057.2,4.86081]
[1742996196041,0.99293748,2057.7,2057.1,9.30414454]
[1742996196243,0.99293748,2057.7,2056.8,8.22824724]
[1742996196244,0.8159,2057.6,2056.8,4.8619]
[1742996196544,3.8159,2057.6,2056.8,4.8619]
[1742996196713,1.2251802,2057.5,2056.8,6.35466545]
[1742996196911,4.954,2057.4,2056.8,1.49276545]
[1742996197111,3.7562,2057.3,2056.5,4.86255]
[1742996197316,0.7884,2057.1,2056.4,4.86278]
[1742996197518,0.7884,2057.1,2056.5,4.86255]
[1742996198124,1.76523795,2057.1,2056.5,4.86255]
[1742996198324,1.76523795,2057.1,2056.5,5.835083]
[1742996198524,1.76523795,2057.1,2056.6,4.86237]
[1742996198754,1.76523795,2057.1,2056.6,4.86239]
[1742996198960,1.76523795,2057.1,2056.5,0.972533]
[1742996199125,4.76523795,2057.1,2056.2,4.86327]
[1742996199455,0.7536,2057.0,2056.3,9.72596]
[1742996199654,4.947,2056.9,2056.3,9.72596]
[1742996199956,4.947,2056.9,2056.1,4.86349]
[1742996200157,3.7604,2056.8,2056.1,4.86349]
[1742996200376,0.87074,2056.7,2056.1,4.86349]
[1742996200573,0.87074,2056.7,2056.2,4.86333]
[1742996200965,3.7604,2056.8,2056.0,4.44296454]
[1742996200966,3.7604,2056.8,2056.4,4.86274]
[1742996201167,3.7604,2056.8,2056.3,4.86309]
[1742996201684,3.7604,2056.8,2056.2,4.86325]
[1742996201999,3.7604,2056.8,2056.1,4.86352]
[1742996202000,0.99670783,2056.6,2056.1,4.86352]
[1742996202292,0.99670783,2056.6,2056.2,4.91191843]
[1742996202498,0.99670783,2056.6,2056.3,4.86306]
[1742996202791,0.99670783,2056.6,2056.3,4.86301]
[1742996203150,0.99670783,2056.6,2056.0,4.44296454]
[1742996203468,0.99670783,2056.6,2056.2,4.49159056]
[1742996203668,5.93870783,2056.6,2056.3,4.86302]
[1742996203975,5.93870783,2056.6,2056.2,4.86322]
[1742996204352,5.93870783,2056.6,2056.0,9.30654454]
[1742996204554,5.93870783,2056.6,2056.1,4.86347]
[1742996204761,6.58417207,2056.6,2056.1,4.86347]
[1742996204965,6.58417207,2056.6,2056.1,4.86345]
[1742996205165,6.58417207,2056.6,2056.0,9.30669454]
[1742996205367,0.7925,2056.5,2056.0,4.86373]
[1742996206201,0.7925,2056.5,2056.1,4.86341]
[1742996206655,0.7925,2056.5,2056.0,4.86373]
[1742996206856,0.7925,2056.5,2056.1,4.86349]
[1742996207055,0.7925,2056.5,2056.2,4.86332]
[1742996207253,0.7925,2056.5,2056.3,4.86308]
[1742996207565,5.7275,2056.5,2056.2,9.72655]
[1742996207814,5.7275,2056.5,2056.2,4.86323]
[1742996208145,5.7275,2056.5,2056.2,4.91183857]
[1742996208347,5.7275,2056.5,2056.2,4.86321]
[1742996208547,5.7275,2056.5,2056.1,4.44296454]
[1742996208876,5.7275,2056.5,2056.1,14.16991454]
[1742996209358,5.7275,2056.5,2056.2,4.86331]
[1742996209556,6.39992078,2056.5,2056.1,4.86346]
[1742996209761,6.39992078,2056.5,2056.0,4.86371]
[1742996210081,6.39992078,2056.5,2056.2,4.86332]
[1742996210579,5.7275,2056.5,2056.3,4.86308]
[1742996210778,4.935,2056.5,2056.3,9.72591]
[1742996210979,0.99670783,2056.6,2056.4,4.86286]
[1742996211187,0.99670783,2056.6,2056.3,4.86308]
[1742996211497,0.8044,2057.7,2057.5,4.86009]
[1742996211662,0.95414453,2057.5,2057.1,4.44296454]
[1742996211865,0.8044,2057.7,2057.0,10.05467454]
[1742996212080,0.8044,2057.7,2057.0,4.86121]
[1742996212395,0.8044,2057.7,2057.1,4.86111]
[1742996212556,0.8044,2057.7,2057.0,4.86121]
[1742996212888,0.99361629,2057.6,2057.0,4.86121]
[1742996213058,0.8044,2057.7,2057.0,9.72256]
[1742996213059,4.992,2057.5,2057.0,9.72256]
[1742996213255,4.992,2057.5,2057.2,4.86096]
[1742996213682,4.992,2057.5,2057.1,9.72229]
[1742996213862,4.992,2057.5,2057.1,4.86108]
[1742996214197,0.8044,2057.7,2057.4,4.8604]
[1742996214354,4.984,2057.5,2057.4,4.8604]
[1742996214893,5.11559049,2057.5,2057.4,4.8604]
[1742996216498,5.11559049,2057.5,2057.3,4.86061]
[1742996216997,5.11559049,2057.5,2057.3,9.72121]
[1742996217292,5.11559049,2057.5,2057.4,4.8605]
[1742996217994,0.13159049,2057.5,2057.4,9.30346454]
[1742996218360,5.7831,2057.9,2057.7,4.85959]
[1742996218693,5.7831,2057.9,2057.5,4.86008]
[1742996219318,5.7831,2057.9,2057.5,9.72023]
[1742996219476,5.7831,2057.9,2057.5,9.72024]
[1742996219676,5.7831,2057.9,2057.6,4.85996]
[1742996219890,6.71641,2057.9,2057.7,4.85966]
[1742996220619,0.7981,2057.9,2057.8,4.85955]
[1742996220822,5.7731,2057.9,2057.8,4.85955]
[1742996221489,0.43080026,2058.9,2057.8,4.85955]
[1742996221490,1e-05,2058.9,2057.8,9.67702908]
[1742996221701,0.8071,2058.8,2058.0,0.7911]
[1742996221907,3.1418944,2058.8,2058.0,4.85895]
[1742996222090,5.24296454,2058.7,2057.8,4.85955]
[1742996222305,3.0,2058.4,2057.9,4.85931]
[1742996222475,5.899,2058.3,2057.9,4.85931]
[1742996222673,7.0889,2058.3,2057.8,4.85943]
[1742996223091,0.11824533,2058.2,2057.9,4.85929]
[1742996223294,0.98511852,2058.1,2058.0,4.85908]
[1742996223511,1.09351007,2058.1,2058.0,4.85908]
[1742996223687,1.09351007,2058.1,2057.9,4.85928]
[1742996223892,1.09351007,2058.1,2057.8,4.85936]
[1742996224093,1.91175108,2058.1,2057.6,4.85989]
[1742996224433,1.91175108,2058.1,2057.5,4.44296454]
[1742996224605,1.09351007,2058.1,2057.7,4.85968]
[1742996225212,1.09351007,2058.1,2057.8,4.85946]
[1742996225531,5.20539155,2058.1,2058.0,4.85908]
[1742996226081,0.10839155,2058.1,2058.0,4.85908]
[1742996226276,5.20139155,2058.1,2058.0,4.85908]
[1742996226481,5.20139155,2058.1,2057.9,4.8593]
[1742996226693,5.20139155,2058.1,2057.8,4.85942]
[1742996227322,5.20139155,2058.1,2057.8,4.85937]
[1742996227495,5.20139155,2058.1,2057.9,4.8593]
[1742996228295,5.20139155,2058.1,2057.9,4.8592]
[1742996228296,5.084,2058.0,2057.9,4.8592]
[1742996228635,0.11030247,2058.0,2057.9,6.76132245]
[1742996228938,5.082,2058.0,2057.9,11.20428699]
[1742996229096,5.19230247,2058.0,2057.9,9.30216454]
[1742996229448,5.19230247,2058.0,2057.7,9.30272454]
[1742996230112,5.19230247,2058.0,2057.7,4.85976]
[1742996230349,5.19230247,2058.0,2057.7,9.71938]
[1742996230518,5.19230247,2058.0,2057.4,0.8138]
[1742996230519,0.11030247,2058.0,2057.9,4.85932]
[1742996230832,0.8,2058.3,2057.9,1.41618045]
[1742996230996,0.8,2058.3,2058.2,4.85861]
[1742996231194,0.11030247,2058.2,2058.1,4.85885]
[1742996231392,5.076,2058.2,2058.1,4.85885]
[1742996231599,5.18716043,2058.2,2058.1,4.85885]
[1742996233050,0.11116043,2058.2,2058.1,4.85885]
[1742996233232,0.11116043,2058.2,2058.1,6.8094527]
[1742996233541,5.071,2058.5,2058.4,4.85812]
[1742996233753,5.071,2058.5,2058.4,4.44296454]
[1742996233903,5.8539,2058.5,2058.0,9.30202454]
[1742996234110,5.8539,2058.5,2058.1,4.8587]
[1742996234315,5.8539,2058.5,2058.0,4.44296454]
[1742996234755,5.8539,2058.5,2058.1,4.85869]
[1742996235252,5.8539,2058.5,2058.0,9.30186454]
[1742996235413,5.8539,2058.5,2058.0,14.16076454]
[1742996235850,5.8539,2058.5,2058.1,4.85883]
[1742996236217,33.8999,2058.5,2058.1,4.85883]
[1742996237259,0.09502918,2058.4,2058.1,4.85883]
[1742996237756,3.4945221,2058.4,2057.8,10.09340454]
[1742996238056,3.4945221,2058.4,2057.9,4.85923]
[1742996238748,3.4945221,2058.4,2057.9,9.71839]
[1742996238911,3.4945221,2058.4,2057.9,4.85916]
[1742996239112,3.4945221,2058.4,2057.9,9.71834]
[1742996239312,3.4945221,2058.4,2058.0,9.71793]
[1742996239534,3.4945221,2058.4,2058.0,14.16090454]
[1742996239861,0.09502918,2058.4,2058.1,4.85885]
[1742996240033,0.09502918,2058.4,2058.2,4.44296454]
[1742996240034,5.044,2058.3,2058.2,4.44296454]
[1742996240226,5.044,2058.3,2058.2,9.30157454]
[1742996240566,5.13902918,2058.3,2058.2,9.30157454]
[1742996240861,5.13902918,2058.3,2058.2,4.85861]
[1742996242630,0.09502918,2058.3,2058.2,10.71759699]
[1742996243166,0.09534136,2058.3,2058.1,4.85875]
[1742996243457,33.087,2058.5,2058.1,4.85875]
[1742996243658,0.09565353,2058.2,2058.1,4.85875]
[1742996243867,33.087,2058.5,2058.1,4.85875]
[1742996244179,0.09526329,2058.4,2058.1,4.85875]
[1742996245024,3.09526329,2058.4,2058.1,4.85867]
[1742996245221,0.09526329,2058.4,2058.3,4.85837]
[1742996245972,0.09526329,2058.4,2058.3,4.90694817]
[1742996246841,0.09526329,2058.4,2058.3,4.85837]
[1742996247041,0.09526329,2058.4,2058.3,4.90694604]
[1742996247241,3.29e-06,2058.4,2058.3,6.30377989]
[1742996247483,28.046,2058.5,2058.4,4.85814]
[1742996247649,28.046,2058.5,2058.4,9.30110454]
[1742996248651,28.046,2058.5,2058.4,9.34968056]
[1742996248897,28.046,2058.5,2058.4,9.30110454]
[1742996249102,5.032,2058.8,2058.7,4.85743]
[1742996249963,1e-05,2058.9,2058.8,4.85719]
[1742996251290,1e-05,2058.9,2058.7,9.71476]
[1742996251482,1e-05,2058.9,2058.7,4.85733]
[1742996251682,1e-05,2058.9,2058.8,4.85719]
[1742996253128,1e-05,2058.9,2058.8,5.87721156]
[1742996253391,1e-05,2058.9,2058.8,6.645542]
[1742996254215,1e-05,2058.9,2058.8,6.69410633]
[1742996254377,1e-05,2058.9,2058.8,6.645542]
[1742996255580,1e-05,2058.9,2058.8,5.828642]
[1742996255792,1e-05,2058.9,2058.8,4.85719]
[1742996256707,1e-05,2058.9,2058.8,4.90575651]
[1742996256915,1e-05,2058.9,2058.8,4.85719]
[1742996257311,1e-05,2058.9,2058.8,4.90575652]
[1742996258097,1e-05,2058.9,2058.8,4.85719]
[1742996258698,1e-05,2058.9,2058.8,4.90575652]
[1742996258928,1e-05,2058.9,2058.8,6.40619163]
[1742996260921,1e-05,2058.9,2058.8,4.90575652]
[1742996262326,1e-05,2058.9,2058.8,4.85719]
[1742996262716,1e-05,2058.9,2058.8,4.9057501]
[1742996262918,1e-05,2058.9,2058.8,5.6624501]
[1742996263526,1e-05,2058.9,2058.8,5.61389]
[1742996263738,1e-05,2058.9,2058.8,8.0511559]
[1742996264047,1e-05,2058.9,2058.8,8.00259945]
[1742996264735,1e-05,2058.9,2058.8,8.37413015]
[1742996265336,1e-05,2058.9,2058.8,8.42268662]
[1742996265803,1e-05,2058.9,2058.8,8.37413015]
[1742996266118,1e-05,2058.9,2058.8,8.42268665]
[1742996266704,1e-05,2058.9,2058.8,22.87413015]
[1742996266913,1e-05,2058.9,2058.8,8.37413015]
[1742996267114,1e-05,2058.9,2058.8,8.42268431]
[1742996267314,1e-05,2058.9,2058.8,11.92413015]
[1742996268070,28.031,2060.0,2059.8,4.85473]
[1742996268200,31.40939,2060.0,2059.7,4.85506]
[1742996268405,28.031,2060.0,2059.8,4.85473]
[1742996268604,32.996,2060.0,2059.8,9.7094]
[1742996268831,32.996,2060.0,2059.8,9.70939]
[1742996269036,28.031,2060.0,2059.9,4.8546]
[1742996270360,28.031,2060.0,2059.8,4.85467]
[1742996270559,28.031,2060.0,2059.9,4.8546]
[1742996270862,28.12456449,2060.0,2059.9,4.8546]
[1742996272577,28.12456449,2060.0,2059.9,10.2906495]
[1742996273449,0.8087,2060.7,2060.0,0.8234]
[1742996273662,0.8087,2060.7,2059.9,4.85447]
[1742996273663,3.99063961,2060.1,2059.9,4.85447]
[1742996273968,0.7916,2060.2,2060.1,4.85413]
[1742996274167,5.034,2060.2,2060.1,4.85413]
[1742996274379,5.8256,2060.5,2060.1,4.85413]
[1742996274530,5.034,2060.5,2060.3,4.85354]
[1742996274736,5.034,2060.5,2060.3,0.970731]
[1742996274963,5.034,2060.5,2060.1,4.8541]
[1742996275467,3.99063961,2060.2,2059.8,4.85467]
[1742996275676,0.7851,2060.1,2059.8,4.85467]
[1742996275845,0.7851,2060.3,2060.1,4.85402]
[1742996276164,5.8211,2060.3,2060.1,9.70797]
[1742996276371,5.8231,2060.3,2060.1,5.907067]
[1742996276838,5.8231,2060.3,2060.1,10.761097]
[1742996277038,5.8231,2060.3,2060.2,4.85389]
[1742996277451,5.038,2060.3,2060.2,4.85389]
[1742996277636,0.95510072,2060.4,2060.3,4.85366]
[1742996277970,5.99110072,2060.4,2060.3,4.85366]
[1742996278361,5.036,2060.4,2060.3,4.85366]
[1742996278877,5.036,2060.4,2060.3,5.9297267]
[1742996279065,5.031,2060.5,2060.4,4.85337]
[1742996279249,5.99028719,2060.5,2060.4,4.85337]
[1742996279650,0.95928719,2060.5,2060.4,4.85337]
[1742996281163,3.8002,2060.7,2060.6,4.85295]
[1742996281365,9.7777636,2060.7,2060.6,4.85295]
[1742996281571,0.9565636,2060.7,2060.6,4.85295]
[1742996281742,0.07,2060.9,2060.6,0.73357564]
[1742996281944,0.07,2060.9,2060.8,4.85248]
[1742996282145,0.07,2060.9,2060.8,4.90100007]
[1742996282356,0.07,2060.9,2060.8,4.85248]
[1742996282557,0.07,2060.9,2060.7,4.8525]
[1742996282738,0.8253,2060.8,2060.3,1.0760667]
[1742996283097,0.8253,2060.8,2060.5,4.85309]
[1742996283269,3.8253,2060.8,2060.6,4.85294]
[1742996283569,3.0,2060.8,2060.7,4.85271]
[1742996284066,0.07,2060.9,2060.8,4.85248]
[1742996284272,0.07,2060.9,2060.6,4.85294]
[1742996284461,0.07,2060.9,2060.7,4.85262]
[1742996284662,0.07,2060.9,2060.6,4.85294]
[1742996285470,4.06063961,2060.9,2060.6,4.85294]
[1742996285642,0.07,2060.9,2060.6,4.90132414]
[1742996285842,0.07,2060.9,2060.7,4.8527]
[1742996286044,0.07,2060.9,2060.8,4.85248]
[1742996287974,0.07,2060.9,2060.8,4.90099943]
[1742996288348,0.07,2060.9,2060.8,4.85248]
[1742996288966,0.07,2060.9,2060.8,5.70029319]
[1742996289477,0.07,2060.9,2060.8,5.65178]
[1742996289653,0.07,2060.9,2060.8,7.6841252]
[1742996290265,0.07,2060.9,2060.8,7.73263377]
[1742996290472,0.07,2060.9,2060.8,7.6841252]
[1742996290777,0.1225779,2061.5,2061.4,4.85107]
[1742996291147,0.1225779,2061.5,2061.2,4.85144]
[1742996291148,4.11321751,2061.5,2061.2,4.85144]
[1742996291770,4.11321751,2061.5,2061.2,9.7028]
[1742996291984,4.11321751,2061.5,2061.3,4.85113]
[1742996292156,0.1225779,2061.5,2061.4,4.85107]
[1742996292748,0.1225779,2061.5,2061.4,4.89957471]
[1742996292950,0.1225779,2061.5,2061.4,9.86043432]
[1742996293270,0.1225779,2061.5,2061.4,9.81192961]
[1742996293580,0.1225779,2061.5,2061.4,5.82129]
[1742996293786,7.9e-06,2061.5,2061.4,9.86042645]
[1742996294082,7.9e-06,2061.5,2061.4,13.59182961]
[1742996294282,7.9e-06,2061.5,2061.4,9.60119]
[1742996294982,7.9e-06,2061.5,2061.4,9.64968514]
[1742996295181,7.9e-06,2061.5,2061.4,9.60119]
[1742996295381,7.9e-06,2061.5,2061.4,9.6496851]